[Event "*** Titled Tuesday Blitz"]
[Site "Chess.com"]
[Date "2020.05.19"]
[Round "3"]
[White "Alomaterapia"]
[Black "AuggieWren"]
[Result "1-0"]
[WhiteElo "2518"]
[BlackElo "2283"]
[TimeControl "180+1"]
[EndTime "12:29:01 PDT"]
[Termination "Alomaterapia won by resignation"]

1. d4 {[%clk 0:03:00.9]} 1... d5 {[%clk 0:02:59.6]} 2. c4 {[%clk 0:03:00.7]}
2... c6 {[%clk 0:02:59.4]} 3. Nf3 {[%clk 0:03:01.1]} 3... Nf6 {[%clk 0:02:59.4]}
4. e3 {[%clk 0:03:01.3]} 4... Bf5 {[%clk 0:02:58.4]} 5. Nc3 {[%clk 0:03:00.6]}
5... e6 {[%clk 0:02:57.5]} 6. Nh4 {[%clk 0:03:01.2]} 6... Be4 {[%clk 0:02:53.7]}
7. f3 {[%clk 0:03:01.7]} 7... Bg6 {[%clk 0:02:53.5]} 8. Qb3 {[%clk 0:03:02.4]}
8... Qc7 {[%clk 0:02:48]} 9. Bd2 {[%clk 0:03:02.6]} 9... Nbd7 {[%clk 0:02:44.4]}
10. cxd5 {[%clk 0:03:00.4]} 10... exd5 {[%clk 0:02:39.7]} 11. Nxg6 {[%clk
0:02:38.8]} 11... hxg6 {[%clk 0:02:39.2]} 12. e4 {[%clk 0:02:39.1]} 12... dxe4
{[%clk 0:02:17]} 13. fxe4 {[%clk 0:02:40]} 13... Qb6 {[%clk 0:02:03.6]} 14. e5
{[%clk 0:02:30]} 14... Qxb3 {[%clk 0:01:36.5]} 15. axb3 {[%clk 0:02:30.9]} 15...
Ng4 {[%clk 0:01:35.3]} 16. O-O-O {[%clk 0:01:59.7]} 16... Nf2 {[%clk 0:01:31.8]}
17. Be2 {[%clk 0:01:51.1]} 17... Nxh1 {[%clk 0:01:27.6]} 18. Rxh1 {[%clk
0:01:52]} 18... Nb6 {[%clk 0:01:25.8]} 19. Bg4 {[%clk 0:01:43.7]} 19... Bb4
{[%clk 0:01:21.7]} 20. h3 {[%clk 0:01:42.9]} 20... O-O {[%clk 0:01:12.3]} 21. h4
{[%clk 0:01:39.7]} 21... Rfd8 {[%clk 0:01:05.7]} 22. Be3 {[%clk 0:01:39.2]}
22... Bxc3 {[%clk 0:01:02.7]} 23. bxc3 {[%clk 0:01:39.2]} 23... Nd5 {[%clk
0:01:03.2]} 24. Bd2 {[%clk 0:01:38.5]} 24... a5 {[%clk 0:00:53.7]} 25. h5 {[%clk
0:01:37]} 25... gxh5 {[%clk 0:00:53.4]} 26. Bxh5 {[%clk 0:01:32.8]} 26... a4
{[%clk 0:00:53.4]} 27. b4 {[%clk 0:01:32.6]} 27... a3 {[%clk 0:00:53.1]} 28. Kb1
{[%clk 0:01:32.8]} 28... Nb6 {[%clk 0:00:52.6]} 29. Ka2 {[%clk 0:01:31.8]} 29...
Nc4 {[%clk 0:00:52.2]} 30. Bg5 {[%clk 0:01:30.1]} 30... f6 {[%clk 0:00:46.2]}
31. exf6 {[%clk 0:01:27.7]} 31... gxf6 {[%clk 0:00:47.1]} 32. Bxf6 {[%clk
0:01:24.7]} 32... Rf8 {[%clk 0:00:47.1]} 33. Rf1 {[%clk 0:01:24.4]} 33... c5
{[%clk 0:00:38.7]} 34. bxc5 {[%clk 0:01:12.9]} 34... Nd2 {[%clk 0:00:29.2]} 35.
Rf4 {[%clk 0:01:09]} 35... Ra6 {[%clk 0:00:27]} 36. Rg4+ {[%clk 0:01:05.7]}
36... Kh7 {[%clk 0:00:26.5]} 37. Bh4 {[%clk 0:00:49.3]} 37... Kh6 {[%clk
0:00:21.3]} 38. Rg5 {[%clk 0:00:46.6]} 38... Ne4 {[%clk 0:00:21.2]} 39. Re5
{[%clk 0:00:39.9]} 39... Nxc3+ {[%clk 0:00:21.3]} 40. Ka1 {[%clk 0:00:35.6]}
40... Rf1+ {[%clk 0:00:21.1]} 41. Be1 {[%clk 0:00:35.3]} 41... Rxe1+ {[%clk
0:00:16.4]} 42. Rxe1 {[%clk 0:00:34.7]} 42... Kxh5 {[%clk 0:00:16.7]} 43. Re3
{[%clk 0:00:34]} 43... Nb5 {[%clk 0:00:13.9]} 44. d5 {[%clk 0:00:32.6]} 44... a2
{[%clk 0:00:14.3]} 45. d6 {[%clk 0:00:31.1]} 45... Kg6 {[%clk 0:00:14.4]} 46. d7
{[%clk 0:00:30.4]} 46... Ra8 {[%clk 0:00:13.7]} 47. Re8 {[%clk 0:00:30.5]} 47...
Nd4 {[%clk 0:00:11.6]} 48. Rxa8 {[%clk 0:00:29.8]} 48... Nc6 {[%clk 0:00:11.5]}
49. d8=Q {[%clk 0:00:28.9]} 49... Nxd8 {[%clk 0:00:09.7]} 50. Rxd8 {[%clk
0:00:29.8]} 1-0

[Event "*** Titled Tuesday Blitz"]
[Site "Chess.com"]
[Date "2020.05.19"]
[Round "3"]
[White "velemajstor767276"]
[Black "Alexander_Zubov"]
[Result "0-1"]
[WhiteElo "2642"]
[BlackElo "2947"]
[TimeControl "180+1"]
[EndTime "12:29:02 PDT"]
[Termination "Alexander_Zubov won on time"]

1. d4 {[%clk 0:02:59.6]} 1... Nf6 {[%clk 0:02:59.3]} 2. Bg5 {[%clk 0:02:58.8]}
2... d5 {[%clk 0:02:58.8]} 3. e3 {[%clk 0:02:56.3]} 3... c5 {[%clk 0:02:58.2]}
4. Bxf6 {[%clk 0:02:45.7]} 4... gxf6 {[%clk 0:02:57.6]} 5. Nc3 {[%clk
0:02:45.6]} 5... e6 {[%clk 0:02:52.7]} 6. Qh5 {[%clk 0:02:43.7]} 6... cxd4
{[%clk 0:02:50.1]} 7. exd4 {[%clk 0:02:42.6]} 7... Bb4 {[%clk 0:02:33.9]} 8.
Bb5+ {[%clk 0:02:40.6]} 8... Nc6 {[%clk 0:02:21.5]} 9. Ne2 {[%clk 0:02:39.3]}
9... Bd7 {[%clk 0:02:21.6]} 10. O-O {[%clk 0:02:10.4]} 10... Ne7 {[%clk
0:02:19.5]} 11. Nf4 {[%clk 0:01:44.2]} 11... Ng6 {[%clk 0:01:45.2]} 12. Qf3
{[%clk 0:01:02.4]} 12... Bxc3 {[%clk 0:01:19.3]} 13. Bxd7+ {[%clk 0:00:58.1]}
13... Qxd7 {[%clk 0:01:19.4]} 14. bxc3 {[%clk 0:00:55.9]} 14... Qc7 {[%clk
0:00:51.9]} 15. Nh5 {[%clk 0:00:52.1]} 15... f5 {[%clk 0:00:51.5]} 16. g3 {[%clk
0:00:46.7]} 16... Rc8 {[%clk 0:00:46.7]} 17. Rab1 {[%clk 0:00:44.9]} 17... b6
{[%clk 0:00:46.1]} 18. Rb3 {[%clk 0:00:38.3]} 18... Kf8 {[%clk 0:00:41.8]} 19.
Qe3 {[%clk 0:00:34.8]} 19... h6 {[%clk 0:00:40.9]} 20. a4 {[%clk 0:00:28.2]}
20... Qd7 {[%clk 0:00:37.5]} 21. a5 {[%clk 0:00:23.3]} 21... b5 {[%clk
0:00:35.8]} 22. a6 {[%clk 0:00:22.4]} 22... Ke7 {[%clk 0:00:32.4]} 23. Rfb1
{[%clk 0:00:21.9]} 23... Rb8 {[%clk 0:00:32.8]} 24. Kf1 {[%clk 0:00:11.7]} 24...
Rb6 {[%clk 0:00:26.9]} 25. Qd3 {[%clk 0:00:10.2]} 25... Rhb8 {[%clk 0:00:25.6]}
26. Qe3 {[%clk 0:00:10.3]} 26... Rxa6 {[%clk 0:00:20.5]} 27. Qxh6 {[%clk
0:00:09.7]} 27... Rab6 {[%clk 0:00:20.6]} 28. Qg5+ {[%clk 0:00:08.8]} 28... Kf8
{[%clk 0:00:20.8]} 29. Qf6 {[%clk 0:00:05.3]} 29... Qd8 {[%clk 0:00:19.8]} 30.
Qg7+ {[%clk 0:00:03.9]} 30... Ke7 {[%clk 0:00:19.3]} 31. Re1 {[%clk 0:00:04.5]}
31... a5 {[%clk 0:00:17.8]} 32. Qf6+ {[%clk 0:00:04]} 32... Kf8 {[%clk
0:00:17.7]} 33. Qg7+ {[%clk 0:00:02.8]} 33... Ke7 {[%clk 0:00:18]} 34. Qf6+
{[%clk 0:00:03.1]} 34... Kd6 {[%clk 0:00:17.7]} 35. Qxf7 {[%clk 0:00:03]} 35...
Qe8 {[%clk 0:00:18.1]} 36. Qf6 {[%clk 0:00:02.9]} 36... a4 {[%clk 0:00:17.8]}
37. Ng7 {[%clk 0:00:03]} 37... Qd7 {[%clk 0:00:14.7]} 38. Rxe6+ {[%clk
0:00:03.4]} 38... Kc7 {[%clk 0:00:14.8]} 39. Rxb6 {[%clk 0:00:02.6]} 39... Rxb6
{[%clk 0:00:14.6]} 40. Qxf5 {[%clk 0:00:02.7]} 40... Qxf5 {[%clk 0:00:14.2]} 41.
Nxf5 {[%clk 0:00:03.6]} 41... axb3 {[%clk 0:00:14.8]} 0-1

[Event "*** Titled Tuesday Blitz"]
[Site "Chess.com"]
[Date "2020.05.19"]
[Round "3"]
[White "Pultis"]
[Black "DenishevM"]
[Result "0-1"]
[WhiteElo "2767"]
[BlackElo "2547"]
[TimeControl "180+1"]
[EndTime "12:29:02 PDT"]
[Termination "DenishevM won by checkmate"]

1. d4 {[%clk 0:03:00.9]} 1... Nf6 {[%clk 0:02:59.3]} 2. c4 {[%clk 0:03:00.9]}
2... g6 {[%clk 0:02:58.6]} 3. g3 {[%clk 0:03:00.8]} 3... Bg7 {[%clk 0:02:57.4]}
4. Bg2 {[%clk 0:03:01.7]} 4... O-O {[%clk 0:02:57.8]} 5. Nc3 {[%clk 0:03:02.3]}
5... d6 {[%clk 0:02:57.3]} 6. Nf3 {[%clk 0:03:02.7]} 6... Nc6 {[%clk 0:02:57.7]}
7. O-O {[%clk 0:03:03]} 7... e5 {[%clk 0:02:57.8]} 8. dxe5 {[%clk 0:03:02.3]}
8... dxe5 {[%clk 0:02:58.5]} 9. Qa4 {[%clk 0:03:01.9]} 9... Be6 {[%clk
0:02:33.8]} 10. Bg5 {[%clk 0:03:00.9]} 10... h6 {[%clk 0:02:29.4]} 11. Rad1
{[%clk 0:02:58]} 11... Qe7 {[%clk 0:02:21.6]} 12. Nd5 {[%clk 0:02:56.1]} 12...
Bxd5 {[%clk 0:02:20.2]} 13. Bxf6 {[%clk 0:02:55.7]} 13... Bxf6 {[%clk 0:02:16]}
14. cxd5 {[%clk 0:02:55.5]} 14... Nd4 {[%clk 0:02:16.3]} 15. Nxd4 {[%clk
0:02:36.2]} 15... exd4 {[%clk 0:02:17.2]} 16. Rfe1 {[%clk 0:02:37]} 16... Rfd8
{[%clk 0:02:04.6]} 17. Bf3 {[%clk 0:02:37]} 17... a6 {[%clk 0:01:59.5]} 18. h4
{[%clk 0:02:36]} 18... h5 {[%clk 0:01:57.4]} 19. Qb3 {[%clk 0:02:33.7]} 19...
Rab8 {[%clk 0:01:51.4]} 20. Kg2 {[%clk 0:02:33.4]} 20... Kg7 {[%clk 0:01:50.4]}
21. e3 {[%clk 0:02:30.8]} 21... dxe3 {[%clk 0:01:47.2]} 22. Rxe3 {[%clk
0:02:31.7]} 22... Qd6 {[%clk 0:01:46.4]} 23. Qc2 {[%clk 0:02:17.8]} 23... Rd7
{[%clk 0:01:27.9]} 24. b3 {[%clk 0:02:16.2]} 24... Rbd8 {[%clk 0:01:27.2]} 25.
Rde1 {[%clk 0:02:03.4]} 25... Qb6 {[%clk 0:01:17.8]} 26. Re8 {[%clk 0:02:01.3]}
26... Rxe8 {[%clk 0:01:09.9]} 27. Rxe8 {[%clk 0:02:02.2]} 27... Qd4 {[%clk
0:01:09.6]} 28. Rb8 {[%clk 0:01:50.1]} 28... b6 {[%clk 0:00:46.6]} 29. Qc6
{[%clk 0:01:46.6]} 29... Re7 {[%clk 0:00:43.7]} 30. Qa8 {[%clk 0:01:47]} 30...
Kh7 {[%clk 0:00:33.1]} 31. Qxa6 {[%clk 0:01:43.1]} 31... Re1 {[%clk 0:00:31.1]}
32. Qc4 {[%clk 0:00:40.6]} 32... Qe5 {[%clk 0:00:16.1]} 33. a4 {[%clk
0:00:33.7]} 33... Rb1 {[%clk 0:00:11.9]} 34. Qb4 {[%clk 0:00:27]} 34... Rb2
{[%clk 0:00:06.3]} 35. Qf4 {[%clk 0:00:12.3]} 35... Qe1 {[%clk 0:00:02.8]} 36.
Bxh5 {[%clk 0:00:08.1]} 36... Bg7 {[%clk 0:00:01.2]} 37. Bg4 {[%clk 0:00:05.5]}
37... Rb1 {[%clk 0:00:01.7]} 38. Bf3 {[%clk 0:00:03.5]} 38... Qh1# {[%clk
0:00:01.9]} 0-1

[Event "*** Titled Tuesday Blitz"]
[Site "Chess.com"]
[Date "2020.05.19"]
[Round "3"]
[White "NefeLV"]
[Black "korbul"]
[Result "1/2-1/2"]
[WhiteElo "1829"]
[BlackElo "2454"]
[TimeControl "180+1"]
[EndTime "12:29:02 PDT"]
[Termination "Game drawn by repetition"]

1. c4 {[%clk 0:03:00.9]} 1... e6 {[%clk 0:02:59.4]} 2. Nc3 {[%clk 0:03:00.6]}
2... d5 {[%clk 0:02:59]} 3. d4 {[%clk 0:03:01.3]} 3... Be7 {[%clk 0:02:58.7]} 4.
e3 {[%clk 0:03:01.2]} 4... Nf6 {[%clk 0:02:58.7]} 5. Bd3 {[%clk 0:03:01]} 5...
a6 {[%clk 0:02:58.5]} 6. Nf3 {[%clk 0:03:00.6]} 6... dxc4 {[%clk 0:02:58.4]} 7.
Bxc4 {[%clk 0:03:00.5]} 7... b5 {[%clk 0:02:58.8]} 8. Bd3 {[%clk 0:03:00.2]}
8... Bb7 {[%clk 0:02:59.1]} 9. O-O {[%clk 0:02:59.4]} 9... Nbd7 {[%clk
0:02:58.8]} 10. Ne5 {[%clk 0:02:58]} 10... Nxe5 {[%clk 0:02:57]} 11. dxe5 {[%clk
0:02:57.6]} 11... Nd7 {[%clk 0:02:57.9]} 12. f4 {[%clk 0:02:56.6]} 12... Nc5
{[%clk 0:02:57.5]} 13. Bc2 {[%clk 0:02:50.7]} 13... Qxd1 {[%clk 0:02:56.3]} 14.
Rxd1 {[%clk 0:02:51.6]} 14... b4 {[%clk 0:02:54.5]} 15. Ne2 {[%clk 0:02:48.9]}
15... O-O {[%clk 0:02:53.9]} 16. Nd4 {[%clk 0:02:46]} 16... Rfd8 {[%clk
0:02:44.8]} 17. Bd2 {[%clk 0:02:39]} 17... a5 {[%clk 0:02:43.9]} 18. Be1 {[%clk
0:02:31]} 18... Be4 {[%clk 0:02:37.6]} 19. Rac1 {[%clk 0:02:27.4]} 19... Kf8
{[%clk 0:02:26]} 20. Bxe4 {[%clk 0:02:24.1]} 20... Nxe4 {[%clk 0:02:25]} 21.
Rxc7 {[%clk 0:02:23.3]} 21... Bc5 {[%clk 0:02:22.6]} 22. Rc1 {[%clk 0:01:56.9]}
22... Bxd4 {[%clk 0:02:15.3]} 23. exd4 {[%clk 0:01:57.8]} 23... Rxd4 {[%clk
0:02:12.4]} 24. Kf1 {[%clk 0:01:58.7]} 24... Rad8 {[%clk 0:01:59.8]} 25. Ra7
{[%clk 0:01:57]} 25... R8d7 {[%clk 0:01:55.2]} 26. Rxa5 {[%clk 0:01:54.3]} 26...
g5 {[%clk 0:01:48.1]} 27. fxg5 {[%clk 0:01:45.9]} 27... Kg7 {[%clk 0:01:48.1]}
28. Rb5 {[%clk 0:01:41.8]} 28... Kg6 {[%clk 0:01:47.6]} 29. h4 {[%clk
0:01:31.7]} 29... Kf5 {[%clk 0:01:44.9]} 30. Bxb4 {[%clk 0:01:18.7]} 30... R7d5
{[%clk 0:01:44.4]} 31. Rb7 {[%clk 0:01:10.6]} 31... Kxe5 {[%clk 0:01:40.6]} 32.
Bc3 {[%clk 0:01:04.2]} 32... Nxc3 {[%clk 0:01:39.9]} 33. bxc3 {[%clk 0:01:02.6]}
33... Rd2 {[%clk 0:01:34.7]} 34. a4 {[%clk 0:00:52.9]} 34... Ra2 {[%clk
0:01:30.9]} 35. Rxf7 {[%clk 0:00:38.7]} 35... Rxa4 {[%clk 0:01:27.2]} 36. c4
{[%clk 0:00:35.4]} 36... Rc5 {[%clk 0:01:13]} 37. Rxh7 {[%clk 0:00:34.9]} 37...
Rcxc4 {[%clk 0:01:09.4]} 38. Rxc4 {[%clk 0:00:33.8]} 38... Rxc4 {[%clk
0:01:08.7]} 39. g6 {[%clk 0:00:33]} 39... Kf6 {[%clk 0:01:03.6]} 40. g7 {[%clk
0:00:32.8]} 40... Kf7 {[%clk 0:01:02.6]} 41. h5 {[%clk 0:00:31.9]} 41... Kg8
{[%clk 0:00:52.8]} 42. Rh6 {[%clk 0:00:31]} 42... Kxg7 {[%clk 0:00:40.9]} 43.
Rxe6 {[%clk 0:00:30.2]} 43... Rc2 {[%clk 0:00:39.2]} 44. g4 {[%clk 0:00:25.8]}
44... Ra2 {[%clk 0:00:35.8]} 45. Re2 {[%clk 0:00:25.2]} 45... Ra4 {[%clk
0:00:34.7]} 46. Rg2 {[%clk 0:00:23.7]} 46... Kh6 {[%clk 0:00:34.9]} 47. Kf2
{[%clk 0:00:23.5]} 47... Kg5 {[%clk 0:00:33.7]} 48. Kg3 {[%clk 0:00:23.5]} 48...
Ra3+ {[%clk 0:00:33.5]} 49. Kh2 {[%clk 0:00:23.2]} 49... Ra6 {[%clk 0:00:33]}
50. Rg3 {[%clk 0:00:22.7]} 50... Ra1 {[%clk 0:00:31.2]} 51. Kh3 {[%clk
0:00:20.6]} 51... Rh1+ {[%clk 0:00:30.5]} 52. Kg2 {[%clk 0:00:20.9]} 52... Ra1
{[%clk 0:00:31.4]} 53. Kf3 {[%clk 0:00:19.7]} 53... Ra3+ {[%clk 0:00:31.1]} 54.
Kf2 {[%clk 0:00:19.9]} 54... Ra2+ {[%clk 0:00:31.3]} 55. Kf3 {[%clk 0:00:20.1]}
55... Ra3+ {[%clk 0:00:31.3]} 56. Kf2 {[%clk 0:00:20.3]} 56... Ra2+ {[%clk
0:00:31.5]} 57. Kf3 {[%clk 0:00:20.8]} 57... Ra3+ {[%clk 0:00:31.7]} 1/2-1/2

[Event "*** Titled Tuesday Blitz"]
[Site "Chess.com"]
[Date "2020.05.19"]
[Round "3"]
[White "floplover"]
[Black "Bossche-CM"]
[Result "1/2-1/2"]
[WhiteElo "2306"]
[BlackElo "2455"]
[TimeControl "180+1"]
[EndTime "12:29:02 PDT"]
[Termination "Game drawn - insufficient material"]

1. d4 {[%clk 0:03:00.9]} 1... Nf6 {[%clk 0:02:59.4]} 2. c4 {[%clk 0:02:59.8]}
2... e6 {[%clk 0:02:59.8]} 3. Nc3 {[%clk 0:02:59.7]} 3... Bb4 {[%clk 0:02:59.1]}
4. Qc2 {[%clk 0:02:59.6]} 4... O-O {[%clk 0:02:41.3]} 5. e4 {[%clk 0:02:59.4]}
5... d5 {[%clk 0:02:39.4]} 6. e5 {[%clk 0:02:59.4]} 6... Ne4 {[%clk 0:02:39]} 7.
Bd3 {[%clk 0:02:59.5]} 7... c5 {[%clk 0:02:37.2]} 8. Nf3 {[%clk 0:02:59.5]} 8...
cxd4 {[%clk 0:02:35.3]} 9. Nxd4 {[%clk 0:03:00.4]} 9... Nd7 {[%clk 0:02:34.2]}
10. Bf4 {[%clk 0:03:00.4]} 10... Qh4 {[%clk 0:02:31.1]} 11. g3 {[%clk 0:03:00]}
11... Qh5 {[%clk 0:02:29.8]} 12. O-O {[%clk 0:03:00.1]} 12... g5 {[%clk
0:02:28.3]} 13. Be3 {[%clk 0:02:09]} 13... Bxc3 {[%clk 0:02:22.4]} 14. bxc3
{[%clk 0:02:01.6]} 14... Nxe5 {[%clk 0:02:11.1]} 15. f3 {[%clk 0:02:00.2]} 15...
Nxd3 {[%clk 0:02:00.8]} 16. Qxd3 {[%clk 0:01:30.9]} 16... Nc5 {[%clk 0:01:58.4]}
17. Qd2 {[%clk 0:01:29.2]} 17... dxc4 {[%clk 0:01:49.8]} 18. Bxg5 {[%clk
0:01:09.6]} 18... f6 {[%clk 0:01:43.8]} 19. Bh4 {[%clk 0:01:00.5]} 19... Nd3
{[%clk 0:01:33.2]} 20. a4 {[%clk 0:00:52.4]} 20... b6 {[%clk 0:01:31.7]} 21. a5
{[%clk 0:00:49.7]} 21... e5 {[%clk 0:01:16.1]} 22. Nb5 {[%clk 0:00:27.9]} 22...
Bb7 {[%clk 0:01:16.2]} 23. Nd6 {[%clk 0:00:23.4]} 23... Bxf3 {[%clk 0:01:14.9]}
24. axb6 {[%clk 0:00:20.3]} 24... axb6 {[%clk 0:01:08.5]} 25. Rxa8 {[%clk
0:00:21.2]} 25... Bxa8 {[%clk 0:00:47.3]} 26. Nxc4 {[%clk 0:00:20.6]} 26... e4
{[%clk 0:00:36.9]} 27. Bxf6 {[%clk 0:00:17.3]} 27... b5 {[%clk 0:00:26.1]} 28.
Ne3 {[%clk 0:00:13.8]} 28... Qh6 {[%clk 0:00:21.9]} 29. Bd4 {[%clk 0:00:12.8]}
29... Rxf1+ {[%clk 0:00:19.7]} 30. Nxf1 {[%clk 0:00:13]} 30... Qxd2 {[%clk
0:00:18.8]} 31. Nxd2 {[%clk 0:00:13.9]} 31... Bd5 {[%clk 0:00:18.9]} 32. Kf1
{[%clk 0:00:13.2]} 32... Kf7 {[%clk 0:00:19.3]} 33. Ke2 {[%clk 0:00:13.5]} 33...
Ke6 {[%clk 0:00:18.3]} 34. Ke3 {[%clk 0:00:13.8]} 34... Kf5 {[%clk 0:00:18.8]}
35. h3 {[%clk 0:00:13.9]} 35... h5 {[%clk 0:00:17.1]} 36. g4+ {[%clk 0:00:13.9]}
36... hxg4 {[%clk 0:00:17.8]} 37. hxg4+ {[%clk 0:00:14.8]} 37... Kxg4 {[%clk
0:00:18]} 38. Nxe4 {[%clk 0:00:15.2]} 38... Bxe4 {[%clk 0:00:16.1]} 39. Kxe4
{[%clk 0:00:16.1]} 39... Nb2 {[%clk 0:00:15.7]} 40. Kd5 {[%clk 0:00:14.7]} 40...
Na4 {[%clk 0:00:13.4]} 41. Kc6 {[%clk 0:00:13.6]} 41... Nxc3 {[%clk 0:00:07.6]}
42. Bxc3 {[%clk 0:00:13.6]} 42... b4 {[%clk 0:00:06.3]} 43. Bxb4 {[%clk
0:00:13.6]} 1/2-1/2

[Event "*** Titled Tuesday Blitz"]
[Site "Chess.com"]
[Date "2020.05.19"]
[Round "3"]
[White "AminMolaei"]
[Black "BilodeauA"]
[Result "1-0"]
[WhiteElo "2619"]
[BlackElo "2846"]
[TimeControl "180+1"]
[EndTime "12:29:03 PDT"]
[Termination "AminMolaei won by checkmate"]

1. d4 {[%clk 0:03:00.9]} 1... d5 {[%clk 0:02:59.9]} 2. c4 {[%clk 0:03:00.6]}
2... dxc4 {[%clk 0:03:00.8]} 3. Nf3 {[%clk 0:03:00]} 3... a6 {[%clk 0:03:00.7]}
4. a4 {[%clk 0:02:59.6]} 4... Nf6 {[%clk 0:03:00.4]} 5. e3 {[%clk 0:02:59.6]}
5... Bg4 {[%clk 0:03:00.5]} 6. Bxc4 {[%clk 0:02:59.6]} 6... e6 {[%clk
0:03:01.2]} 7. Be2 {[%clk 0:02:59.1]} 7... Nc6 {[%clk 0:03:01.3]} 8. O-O {[%clk
0:02:59.1]} 8... Bd6 {[%clk 0:03:01.5]} 9. Nc3 {[%clk 0:02:59.2]} 9... O-O
{[%clk 0:03:01.8]} 10. h3 {[%clk 0:02:59.4]} 10... Bh5 {[%clk 0:03:01.9]} 11.
Nd2 {[%clk 0:02:49]} 11... Bxe2 {[%clk 0:02:59.9]} 12. Qxe2 {[%clk 0:02:49.9]}
12... e5 {[%clk 0:03:00.4]} 13. d5 {[%clk 0:02:45.4]} 13... Nb4 {[%clk 0:03:01]}
14. e4 {[%clk 0:02:32.4]} 14... Nc2 {[%clk 0:03:00.9]} 15. Rb1 {[%clk
0:02:30.8]} 15... Nd4 {[%clk 0:03:01.1]} 16. Qd3 {[%clk 0:02:26.4]} 16... Nd7
{[%clk 0:02:51.4]} 17. b4 {[%clk 0:02:21.1]} 17... a5 {[%clk 0:02:49.3]} 18. Ba3
{[%clk 0:01:44.9]} 18... Qe7 {[%clk 0:02:48.6]} 19. Nc4 {[%clk 0:01:29.1]} 19...
Bxb4 {[%clk 0:02:47.9]} 20. Bb2 {[%clk 0:01:22.1]} 20... Nc5 {[%clk 0:02:41.7]}
21. Qe3 {[%clk 0:01:16.8]} 21... Ra6 {[%clk 0:02:27]} 22. f4 {[%clk 0:01:04.5]}
22... Nd7 {[%clk 0:01:59.2]} 23. Kh1 {[%clk 0:00:47.6]} 23... Bc5 {[%clk
0:01:53.9]} 24. fxe5 {[%clk 0:00:44.8]} 24... Nc6 {[%clk 0:01:44.1]} 25. d6
{[%clk 0:00:35.2]} 25... Qe6 {[%clk 0:01:34.4]} 26. Qe2 {[%clk 0:00:29.4]} 26...
Nd4 {[%clk 0:00:38.9]} 27. Qd3 {[%clk 0:00:29.1]} 27... cxd6 {[%clk 0:00:37]}
28. exd6 {[%clk 0:00:26.6]} 28... Re8 {[%clk 0:00:33.4]} 29. Nd5 {[%clk
0:00:24.6]} 29... Qxe4 {[%clk 0:00:32.5]} 30. Ne7+ {[%clk 0:00:22.2]} 30... Rxe7
{[%clk 0:00:28.9]} 31. dxe7 {[%clk 0:00:23.1]} 31... Re6 {[%clk 0:00:18.4]} 32.
Qxe4 {[%clk 0:00:20]} 32... Rxe4 {[%clk 0:00:18.7]} 33. Bxd4 {[%clk 0:00:10.2]}
33... Bxe7 {[%clk 0:00:12.7]} 34. Rfe1 {[%clk 0:00:07.8]} 34... Rxd4 {[%clk
0:00:12.2]} 35. Rxe7 {[%clk 0:00:07.7]} 35... Nf6 {[%clk 0:00:13.1]} 36. Ne5
{[%clk 0:00:06.6]} 36... h5 {[%clk 0:00:11.9]} 37. Rexb7 {[%clk 0:00:06.3]}
37... Rxa4 {[%clk 0:00:12]} 38. Nxf7 {[%clk 0:00:06.4]} 38... h4 {[%clk
0:00:12.3]} 39. Ng5 {[%clk 0:00:06.7]} 39... Kf8 {[%clk 0:00:11.2]} 40. Rf7+
{[%clk 0:00:06.1]} 40... Ke8 {[%clk 0:00:09.5]} 41. Rb8# {[%clk 0:00:07]} 1-0

[Event "*** Titled Tuesday Blitz"]
[Site "Chess.com"]
[Date "2020.05.19"]
[Round "3"]
[White "yobdc"]
[Black "chessablanca"]
[Result "0-1"]
[WhiteElo "1955"]
[BlackElo "2464"]
[TimeControl "180+1"]
[EndTime "12:29:04 PDT"]
[Termination "chessablanca won on time"]

1. c4 {[%clk 0:03:00.9]} 1... e5 {[%clk 0:02:58.6]} 2. g3 {[%clk 0:03:00.3]}
2... Nf6 {[%clk 0:02:58.5]} 3. Bg2 {[%clk 0:03:00.7]} 3... d5 {[%clk 0:02:59.1]}
4. cxd5 {[%clk 0:03:00.4]} 4... Nxd5 {[%clk 0:03:00]} 5. Nc3 {[%clk 0:03:00.8]}
5... Be6 {[%clk 0:02:59.3]} 6. Nf3 {[%clk 0:02:56.5]} 6... Nc6 {[%clk
0:02:58.6]} 7. O-O {[%clk 0:02:56.2]} 7... Be7 {[%clk 0:02:57.4]} 8. d4 {[%clk
0:02:56.3]} 8... exd4 {[%clk 0:02:50.7]} 9. Nb5 {[%clk 0:02:56.1]} 9... Bf6
{[%clk 0:02:42.5]} 10. Nfxd4 {[%clk 0:02:51]} 10... O-O {[%clk 0:02:39.9]} 11.
Nxe6 {[%clk 0:02:42.5]} 11... fxe6 {[%clk 0:02:39.6]} 12. Qc2 {[%clk 0:02:24.7]}
12... a6 {[%clk 0:02:11.8]} 13. Nc3 {[%clk 0:02:24.3]} 13... Ndb4 {[%clk
0:02:09.6]} 14. Qe4 {[%clk 0:02:10.9]} 14... Qe7 {[%clk 0:01:44.4]} 15. a3
{[%clk 0:02:06.9]} 15... Bxc3 {[%clk 0:01:44.3]} 16. bxc3 {[%clk 0:02:03.6]}
16... Nd5 {[%clk 0:01:44.7]} 17. c4 {[%clk 0:01:55.5]} 17... Nf6 {[%clk
0:01:42.4]} 18. Qc2 {[%clk 0:01:43.1]} 18... Nd4 {[%clk 0:01:39.1]} 19. Qb2
{[%clk 0:01:32.8]} 19... e5 {[%clk 0:01:20.2]} 20. e3 {[%clk 0:01:25.8]} 20...
Ne6 {[%clk 0:01:20]} 21. Qxb7 {[%clk 0:01:16.3]} 21... Rab8 {[%clk 0:01:13.5]}
22. Qxa6 {[%clk 0:00:49.9]} 22... Nc5 {[%clk 0:01:08.1]} 23. Qa7 {[%clk
0:00:35.9]} 23... e4 {[%clk 0:00:58.9]} 24. Qa5 {[%clk 0:00:20.6]} 24... Nb3
{[%clk 0:00:51.5]} 25. Qc3 {[%clk 0:00:20.7]} 25... Nxa1 {[%clk 0:00:51.4]} 26.
Qxa1 {[%clk 0:00:21.6]} 26... Qc5 {[%clk 0:00:42.7]} 27. Qc3 {[%clk 0:00:21]}
27... Rfd8 {[%clk 0:00:40.5]} 28. Bb2 {[%clk 0:00:16.8]} 28... Re8 {[%clk
0:00:23.6]} 29. Rd1 {[%clk 0:00:16.3]} 29... Rbd8 {[%clk 0:00:23.6]} 30. Rxd8
{[%clk 0:00:15.5]} 30... Rxd8 {[%clk 0:00:24.5]} 31. h3 {[%clk 0:00:16]} 31...
Qf5 {[%clk 0:00:22.9]} 32. g4 {[%clk 0:00:15.9]} 32... Qc5 {[%clk 0:00:21.3]}
33. Bxe4 {[%clk 0:00:15.5]} 33... Qe7 {[%clk 0:00:16.8]} 34. Bf3 {[%clk
0:00:15]} 34... h6 {[%clk 0:00:13.5]} 35. Kg2 {[%clk 0:00:15.3]} 35... Kh7
{[%clk 0:00:13.9]} 36. c5 {[%clk 0:00:15.7]} 36... c6 {[%clk 0:00:12.2]} 37. a4
{[%clk 0:00:13.9]} 37... Nd5 {[%clk 0:00:12.1]} 38. Qc4 {[%clk 0:00:11.7]} 38...
Rb8 {[%clk 0:00:09.9]} 39. Be4+ {[%clk 0:00:11.1]} 39... Kh8 {[%clk 0:00:09.6]}
40. Ba1 {[%clk 0:00:10.3]} 40... Rb4 {[%clk 0:00:08.6]} 41. Bxg7+ {[%clk
0:00:03.4]} 41... Qxg7 {[%clk 0:00:06.8]} 42. Qd3 {[%clk 0:00:02.7]} 42... Qc3
{[%clk 0:00:05]} 0-1